bitfinex-derivatives/quotes_SOLF0:USTF0_20260210
["timestamp","ask_amount","ask_price","bid_price","bid_amount"]
[1770696223309,11.9483851,85.947,85.893,13.20814413]
[1770696225002,11.9483851,85.959,85.901,13.20814413]
[1770696225200,11.9483851,85.957,85.901,13.20814413]
[1770696225405,11.9483851,85.957,85.911,13.20814413]
[1770696228408,11.9483851,85.957,85.912,10.4843]
[1770696228801,11.9483851,85.957,85.913,13.20814413]
[1770696230918,11.9483851,85.957,85.914,10.4841]
[1770696231413,11.9483851,85.957,85.915,13.01121257]
[1770696233623,12.62316134,85.949,85.902,13.01121257]
[1770696234917,12.62316134,85.949,85.903,13.01121257]
[1770696235721,12.62316134,85.949,85.904,10.4853]
[1770696236115,12.62316134,85.949,85.904,23.49651257]
[1770696236428,12.62316134,85.949,85.905,13.01121257]
[1770696237620,12.62316134,85.949,85.907,10.4849]
[1770696237820,12.62316134,85.949,85.908,13.01121257]
[1770696238627,12.62316134,85.949,85.91,10.4846]
[1770696241126,12.62316134,85.949,85.912,10.4843]
[1770696241528,12.62316134,85.949,85.912,23.49551257]
[1770696241823,12.62316134,85.96,85.921,13.01121257]
[1770696242824,12.62316134,85.96,85.924,10.4829]
[1770696243229,16.62411678,85.97,85.925,13.01121257]
[1770696243426,12.62316134,85.969,85.925,13.01121257]
[1770696244725,12.62316134,85.969,85.927,10.4825]
[1770696247438,12.62316134,85.969,85.877,20.9773]
[1770696247439,12.62316134,85.949,85.883,13.01121257]
[1770696247630,12.62316134,85.939,85.883,13.01121257]
[1770696248537,4.00095544,85.93,85.883,13.01121257]
[1770696248837,12.62316134,85.929,85.885,10.4876]
[1770696255139,12.62316134,85.929,85.885,23.49881257]
[1770696255342,12.62316134,85.947,85.892,13.01121257]
[1770696255636,12.62316134,85.945,85.892,13.01121257]
[1770696255834,12.62316134,85.943,85.892,13.01121257]
[1770696256236,12.62316134,85.943,85.895,13.01121257]
[1770696257436,12.62316134,85.955,85.9,4.0023533]
[1770696257642,8.43139353,85.954,85.901,13.01121257]
[1770696257941,12.62316134,85.953,85.901,13.01121257]
[1770696258835,12.62316134,85.953,85.905,13.01121257]
[1770696259735,12.62316134,85.953,85.907,23.70651776]
[1770696260235,12.62316134,85.953,85.908,13.22151776]
[1770696261840,12.62316134,85.953,85.909,24.0845249]
[1770696262139,12.62316134,85.953,85.91,13.5998249]
[1770696262538,13.59303822,85.969,85.916,13.5998249]
[1770696262739,13.59303822,85.967,85.916,13.5998249]
[1770696262940,13.59303822,85.965,85.916,13.5998249]
[1770696263345,13.59303822,85.963,85.916,13.5998249]
[1770696265244,8.43205615,85.962,85.916,13.5998249]
[1770696265544,13.59303822,85.963,85.916,13.5998249]
[1770696265741,8.43205643,85.962,85.916,13.5998249]
[1770696266046,13.59303822,85.962,85.916,13.5998249]
[1770696266238,13.59303822,85.962,85.921,13.5998249]
[1770696267144,13.59303822,85.976,85.93,13.5998249]
[1770696267344,13.59303822,85.976,85.931,13.5998249]
[1770696268735,13.59303822,85.974,85.931,13.5998249]
[1770696268931,22.12420749,85.973,85.931,13.5998249]
[1770696269136,8.53116927,85.972,85.931,13.5998249]
[1770696269332,13.59303822,85.973,85.931,13.5998249]
[1770696270340,13.59303822,85.973,85.933,13.5998249]
[1770696275252,13.59303822,85.969,85.923,10.483]
[1770696275642,13.59303822,85.969,85.927,10.4824]
[1770696279552,13.59303822,85.969,85.932,10.4819]
[1770696279747,13.59303822,85.969,85.933,13.5998249]
[1770696282551,13.59303822,85.989,85.944,13.5998249]
[1770696282755,13.59303822,85.987,85.944,13.5998249]
[1770696282942,13.59303822,85.985,85.944,13.5998249]
[1770696283147,13.59303822,85.979,85.944,13.5998249]
[1770696284651,4.0023533,85.99,85.944,13.5998249]
[1770696285155,13.59303822,85.989,85.944,13.5998249]
[1770696285849,13.59303822,85.989,85.945,10.4803]
[1770696286050,17.59539152,86.0,85.946,13.5998249]
[1770696286250,13.59303822,85.998,85.946,13.5998249]
[1770696287849,13.59303822,85.998,85.956,10.479]
[1770696289656,13.59303822,85.998,85.946,13.5998249]
[1770696289657,13.59303822,85.998,85.958,10.4787]
[1770696289853,13.59303822,85.998,85.959,13.82556038]
[1770696292354,17.67056383,86.01,85.961,13.82556038]
[1770696292661,13.66821053,86.009,85.961,13.82556038]
[1770696293756,13.66821053,86.009,85.965,10.4779]
[1770696294060,13.66821053,85.999,85.941,13.82556038]
[1770696295866,13.66821053,85.999,85.95,13.82556038]
[1770696296762,13.66821053,85.999,85.956,13.82556038]
[1770696298654,13.66821053,85.999,85.884,29.06176378]
[1770696298655,4.0023533,86.01,85.958,13.82556038]
[1770696299057,13.66821053,86.012,85.961,13.82556038]
[1770696299657,13.66821053,86.012,85.967,13.82556038]
[1770696300359,13.66821053,86.023,85.979,13.82556038]
[1770696300762,4.0023533,86.03,85.981,13.82556038]
[1770696300959,13.66821053,86.029,85.981,13.82556038]
[1770696301858,13.66821053,86.029,85.986,13.82556038]
[1770696303362,13.66821053,86.029,85.988,13.82556038]
[1770696306164,13.66821053,86.029,85.995,10.4742]
[1770696308259,13.66821053,86.054,86.0,13.82556038]
[1770696308578,13.66821053,86.066,86.011,13.82556038]
[1770696309565,13.66821053,86.078,86.035,13.82556038]
[1770696309771,13.66821053,86.078,86.023,13.82556038]
[1770696310163,13.66821053,86.078,86.024,10.4707]
[1770696310363,13.66821053,86.078,86.012,13.82556038]
[1770696310569,13.66821053,86.059,86.012,13.82556038]
[1770696311367,4.0023533,86.07,86.015,13.82556038]
[1770696311663,4.0023533,86.07,85.942,21.5627966]
[1770696311664,4.0023533,86.06,86.021,13.82556038]
[1770696311862,13.66821053,86.069,86.021,13.82556038]
[1770696312062,10.87098127,86.11,86.021,13.82556038]
[1770696312063,13.66821053,86.083,86.021,13.82556038]
[1770696312268,13.66821053,86.083,85.976,162.9686]
[1770696312269,13.66821053,86.083,86.031,13.82556038]
[1770696313167,13.66821053,86.083,86.041,13.82556038]
[1770696314771,13.66821053,86.096,86.046,13.82556038]
[1770696315662,13.66821053,86.096,86.049,10.4676]
[1770696315867,13.66821053,86.096,86.05,13.82556038]
[1770696316675,13.66821053,86.096,86.051,10.4674]
[1770696316871,13.66821053,86.096,86.052,13.82556038]
[1770696317469,13.66821053,86.096,86.053,10.4671]
[1770696317675,13.66821053,86.096,86.054,13.82556038]
[1770696317979,13.66821053,86.096,86.062,10.4661]
[1770696318172,3.98840956,86.11,86.054,13.82556038]
[1770696318377,13.66821053,86.115,86.054,13.82556038]
[1770696319683,13.66821053,86.115,86.076,13.97004999]
[1770696319873,3.98840956,86.12,86.076,13.97004999]
[1770696320477,13.11943884,86.127,86.076,13.97004999]
[1770696320781,13.11943884,86.127,86.079,10.464]
[1770696320981,13.11943884,86.127,86.08,13.97004999]
[1770696321276,13.11943884,86.127,86.081,10.4638]
[1770696321477,13.11943884,86.127,86.081,24.16230308]
[1770696321680,13.11943884,86.127,86.082,13.69850308]
[1770696321882,13.11943884,86.127,86.085,10.4633]
[1770696322477,13.11943884,86.127,86.085,24.16180308]
[1770696322677,13.11943884,86.127,86.086,13.69850308]
[1770696323982,13.11943884,86.127,86.089,10.4627]
[1770696328886,13.66209393,86.141,86.094,13.69850308]
[1770696330777,13.66209393,86.141,86.11,10.4602]
[1770696331178,3.98840956,86.15,86.11,10.4602]
[1770696331388,13.66209393,86.149,86.111,13.69850308]
[1770696332183,13.66209393,86.149,86.02,395.2056]
[1770696332184,3.98840956,86.14,86.091,13.69850308]
[1770696332490,13.66209393,86.129,86.091,13.69850308]
[1770696332791,17.65050349,86.12,86.082,10.4636]
[1770696332984,13.66209393,86.119,86.082,10.4636]
[1770696333386,13.66209393,86.109,86.071,13.69850308]
[1770696333991,13.66209393,86.109,86.071,24.16350308]
[1770696334189,3.98840956,86.1,86.051,13.69850308]
[1770696334390,13.66209393,86.099,86.051,13.69850308]
[1770696335787,13.66209393,86.099,86.053,10.4672]
[1770696336896,17.65050349,86.11,86.056,13.69850308]
[1770696337092,13.66209393,86.11,86.061,13.69850308]
[1770696337295,17.65050349,86.11,86.061,13.69850308]
[1770696337596,13.66209393,86.11,86.061,13.69850308]
[1770696338891,13.66209393,86.11,86.064,10.4658]
[1770696339196,13.66209393,86.11,86.065,13.69850308]
[1770696339896,13.66209393,86.11,86.066,13.69850308]
[1770696340598,13.66209393,86.119,86.071,13.69850308]
[1770696341788,13.66209393,86.119,86.078,10.4641]
[1770696344703,3.98840956,86.11,86.071,13.69850308]
[1770696345099,13.66209393,86.109,86.071,13.69850308]
[1770696346801,13.66209393,86.109,86.01,183.8499]
[1770696346802,13.66209393,86.109,86.073,13.69850308]
[1770696348199,13.66209393,86.109,86.062,10.466]
[1770696349004,13.66209393,86.099,86.06,13.69850308]
[1770696349304,13.66209393,86.099,86.053,13.69850308]
[1770696352013,3.98860368,86.11,86.053,13.69850308]
[1770696352212,13.23174218,86.112,86.061,13.80686747]
[1770696353724,13.23174218,86.109,86.061,13.80686747]
[1770696354015,17.22034586,86.1,86.061,13.80686747]
[1770696355515,13.23174218,86.099,86.061,13.80686747]
[1770696358316,13.23174218,86.099,86.057,10.4666]
[1770696358720,13.23174218,86.099,86.062,13.80686747]
[1770696358918,13.23174218,86.099,86.011,34.97]
[1770696358919,13.23174218,86.099,86.049,13.80686747]
[1770696359719,13.23174218,86.099,86.052,10.4673]
[1770696359927,13.23174218,86.099,86.053,13.80686747]
[1770696360519,8.48063059,86.109,86.053,13.80686747]
[1770696360718,3.98860368,86.11,86.057,13.80686747]
[1770696360923,13.23174218,86.109,86.057,13.80686747]
[1770696361324,13.23174218,86.099,86.045,13.80686747]
[1770696361626,13.23174218,86.097,86.045,13.80686747]
[1770696361926,13.23174218,86.095,86.045,13.80686747]
[1770696362119,21.71521156,86.094,86.045,13.80686747]
[1770696362315,8.48346938,86.093,86.045,13.80686747]
[1770696362519,8.48346938,86.092,86.045,13.80686747]
[1770696362720,13.23174218,86.106,86.051,13.80686747]
[1770696363121,13.23174218,86.104,86.051,13.80686747]
[1770696363322,13.23174218,86.102,86.051,13.80686747]
[1770696363621,17.22034586,86.09,86.051,13.80686747]
[1770696364020,13.23174218,86.089,86.043,10.4684]
[1770696366726,13.23174218,86.089,86.043,24.27526747]
[1770696367435,13.23174218,86.089,86.044,13.80686747]
[1770696368125,13.23174218,86.089,85.998,46.77968161]
[1770696368126,8.48282442,86.104,86.06,3.98860368]
[1770696368334,3.98860368,86.12,86.009,20.9451]
[1770696368335,13.23174218,86.122,86.07,3.98860368]
[1770696368628,13.23174218,86.135,86.081,13.80686747]
[1770696369829,13.23174218,86.135,86.083,10.4635]
[1770696370140,13.23174218,86.135,86.084,13.80686747]
[1770696370820,13.23174218,86.135,86.083,10.4635]
[1770696370821,13.23174218,86.135,86.091,13.80686747]
[1770696377328,13.23174218,86.133,86.091,13.80686747]
[1770696378526,8.48597249,86.151,86.111,13.80686747]
[1770696378726,13.23174218,86.168,86.12,3.98860368]
[1770696378925,21.71547493,86.167,86.121,13.80686747]
[1770696379232,13.23174218,86.167,86.121,13.80686747]
[1770696379433,13.23174218,86.178,86.13,3.98129156]
[1770696379629,8.47330539,86.177,86.131,13.80686747]
[1770696379828,8.47330539,86.176,86.131,13.80686747]
[1770696380033,8.47330539,86.175,86.131,13.80686747]
[1770696380229,8.47330539,86.174,86.131,13.80686747]
[1770696380423,8.47330539,86.177,86.131,13.80686747]
[1770696380624,10.83192503,86.198,86.133,10.4575]
[1770696380829,3.98129156,86.2,86.141,13.3523767]
[1770696380830,14.08251305,86.196,86.141,13.3523767]
[1770696381036,13.362611,86.194,86.141,13.3523767]
[1770696381232,3.98129156,86.2,86.141,13.3523767]
[1770696381233,21.82736338,86.193,86.141,13.3523767]
[1770696381432,8.46475238,86.192,86.141,13.3523767]
[1770696381634,21.82736338,86.192,86.141,13.3523767]
[1770696381834,13.362611,86.192,86.141,13.3523767]
[1770696382133,13.362611,86.192,86.143,10.4562]
[1770696382439,13.362611,86.192,86.144,13.06074941]
[1770696383730,13.362611,86.192,86.143,10.4562]
[1770696383731,13.362611,86.192,86.145,23.51674941]
[1770696383928,13.362611,86.192,86.146,13.06074941]
[1770696386741,13.362611,86.189,86.146,13.06074941]
[1770696387231,13.362611,86.203,86.146,13.06074941]
[1770696387637,13.362611,86.203,86.153,13.06074941]
[1770696387937,13.362611,86.203,86.161,13.06074941]
[1770696388838,13.362611,86.199,86.141,13.06074941]
[1770696389034,13.362611,86.209,86.155,13.06074941]
[1770696389436,3.98129156,86.22,86.161,13.06074941]
[1770696389650,13.362611,86.232,86.181,13.06074941]
[1770696389847,13.362611,86.247,86.191,13.06074941]
[1770696390035,13.362611,86.247,86.196,13.06074941]
[1770696390348,3.98129156,86.25,86.201,13.06074941]
[1770696390537,13.362611,86.239,86.181,13.06074941]
[1770696390737,13.362611,86.229,86.181,13.06074941]
[1770696390942,13.362611,86.237,86.181,13.06074941]
[1770696391143,3.98129156,86.25,86.193,13.06074941]
[1770696391745,3.98129156,86.25,86.201,13.06074941]
[1770696392049,17.34390256,86.23,86.181,13.06074941]
[1770696392945,13.362611,86.23,86.181,13.06074941]
[1770696393743,13.362611,86.23,86.185,10.4511]
[1770696394344,13.362611,86.229,86.185,10.4511]
[1770696395046,13.362611,86.229,86.185,23.51184941]
[1770696395349,13.362611,86.229,86.186,13.06074941]
[1770696396844,13.362611,86.229,86.188,10.4508]
[1770696397747,13.362611,86.242,86.189,13.06074941]
[1770696398750,3.98129156,86.24,86.201,10.4492]
[1770696399151,17.34390256,86.24,86.201,10.4492]
[1770696401249,13.362611,86.24,86.21,10.4481]
[1770696401443,17.34390256,86.24,86.189,13.06074941]
[1770696401638,3.98129156,86.23,86.177,13.06074941]
[1770696401843,13.362611,86.229,86.199,10.4495]
[1770696402045,13.362611,86.229,86.177,13.06074941]
[1770696402843,13.362611,86.229,86.189,10.4506]
[1770696403152,13.362611,86.229,86.177,13.06074941]
[1770696403346,3.98129156,86.22,86.177,13.06074941]
[1770696404655,13.362611,86.229,86.186,13.58018133]
[1770696405550,13.362611,86.229,86.188,10.4507]
[1770696410458,13.362611,86.229,86.18,14.18281253]
[1770696411662,3.98129156,86.24,86.194,14.18281253]
[1770696411957,13.59169423,86.239,86.194,14.18281253]
[1770696414357,13.59169423,86.239,86.196,10.4498]
[1770696415249,13.59169423,86.239,86.196,24.63261253]
[1770696415454,13.59169423,86.239,86.199,14.18281253]
[1770696416862,13.59169423,86.239,86.2,10.4492]
[1770696418861,13.59169423,86.239,86.212,10.4478]
[1770696419060,17.57298579,86.25,86.212,10.4478]
[1770696419365,13.59169423,86.249,86.212,10.4478]
[1770696419658,13.59169423,86.249,86.203,10.4489]
[1770696419960,13.59169423,86.249,86.204,14.18281253]
[1770696420357,13.59169423,86.249,86.218,10.4472]
[1770696421263,13.59169423,86.249,86.161,162.6187]
[1770696421264,13.59169423,86.229,86.192,14.18281253]
[1770696422756,13.59169423,86.229,86.197,10.4496]
[1770696422961,3.98129156,86.24,86.198,14.18281253]
[1770696423161,13.59169423,86.241,86.198,14.18281253]
[1770696425164,13.59169423,86.241,86.2,14.18281253]
[1770696427667,8.4217215,86.247,86.2,14.18281253]
[1770696427861,8.4217215,86.247,86.19,3.98129156]
[1770696427862,13.59169423,86.256,86.201,14.18281253]
[1770696428259,13.59169423,86.268,86.215,14.18281253]
[1770696429868,13.59169423,86.268,86.229,10.4448]
[1770696430675,13.59169423,86.268,86.229,24.62761253]
[1770696431170,13.59169423,86.268,86.236,10.4439]
[1770696431371,17.57298579,86.28,86.237,14.18281253]
[1770696432066,17.57298579,86.28,86.225,10.4452]
[1770696432067,13.59169423,86.279,86.225,10.4452]
[1770696432268,13.59169423,86.278,86.226,14.18281253]
[1770696433166,13.59169423,86.278,86.23,10.4446]
[1770696433365,13.59169423,86.278,86.231,14.18281253]
[1770696433769,13.59169423,86.278,86.237,14.18281253]
[1770696436866,13.59169423,86.278,86.239,10.4436]
[1770696437668,8.42014557,86.295,86.248,14.18281253]
[1770696437865,22.0118398,86.294,86.248,14.18281253]
[1770696438072,3.98129156,86.3,86.248,14.18281253]
[1770696438073,13.59169423,86.293,86.248,14.18281253]
[1770696439174,13.59169423,86.293,86.249,10.4423]
[1770696439874,1.9170727,86.31,86.237,10.4437]
[1770696439875,3.97022159,86.28,86.237,10.4437]
[1770696440064,12.8010193,86.279,86.237,10.4437]
[1770696440671,3.97022159,86.27,86.227,10.445]
[1770696440869,12.8010193,86.269,86.227,10.445]
[1770696441378,12.8010193,86.269,86.161,34.88]
[1770696441379,8.41615885,86.292,86.241,13.16239753]
[1770696441577,8.41615885,86.309,86.25,3.97022159]
[1770696441777,5.88729429,86.31,86.252,10.4419]
[1770696441979,1.9170727,86.31,86.26,3.97022159]
[1770696443280,13.47409346,86.309,86.26,3.97022159]
[1770696443467,13.47409346,86.309,86.256,10.4414]
[1770696445070,13.47409346,86.299,86.246,13.16239753]
[1770696445464,13.47409346,86.299,86.251,13.16239753]
[1770696447263,13.47409346,86.299,86.26,3.97022159]
[1770696447465,13.47409346,86.299,86.261,13.16239753]
[1770696453078,13.47409346,86.289,86.236,13.16239753]
[1770696454877,13.47409346,86.279,86.224,13.16239753]
[1770696456478,10.4391,86.277,86.224,13.16239753]
[1770696456680,13.47409346,86.269,86.224,13.16239753]
[1770696460969,13.47409346,86.281,86.224,13.16239753]
[1770696461774,13.47409346,86.292,86.24,3.97022159]
[1770696461974,13.47409346,86.309,86.251,13.16239753]
[1770696462780,13.47409346,86.305,86.251,13.16239753]
[1770696462986,13.47409346,86.299,86.251,13.16239753]
[1770696463187,3.97022159,86.29,86.239,13.16239753]
[1770696463377,13.47409346,86.289,86.239,13.16239753]
[1770696464077,3.97022159,86.28,86.239,13.16239753]
[1770696464280,17.44431505,86.28,86.239,13.16239753]
[1770696465783,13.47409346,86.28,86.239,13.16239753]
[1770696473590,13.22983126,86.292,86.239,13.16239753]
[1770696475198,13.22983126,86.289,86.239,13.16239753]
[1770696478096,13.22983126,86.289,86.24,10.4434]
[1770696478294,13.22983126,86.289,86.241,13.22297278]
[1770696480292,13.22983126,86.289,86.24,10.4434]
[1770696481301,13.22983126,86.289,86.24,23.66637278]
[1770696481493,13.22983126,86.289,86.244,13.22297278]
[1770696484002,13.22983126,86.289,86.234,10.4442]
[1770696484205,12.78653102,86.287,86.234,10.4442]
[1770696484400,12.7339493,86.285,86.234,10.4442]
[1770696484604,12.73098336,86.279,86.229,13.22297278]
[1770696485403,12.63692385,86.269,86.213,13.22297278]
[1770696486109,12.63692385,86.269,86.214,10.4465]
[1770696486307,12.63692385,86.269,86.215,13.22297278]
[1770696488903,12.41560371,86.259,86.215,13.22297278]
[1770696489511,16.33538329,86.27,86.217,13.22297278]
[1770696489710,12.36482403,86.27,86.217,13.22297278]
[1770696490014,12.36482403,86.27,86.221,13.22297278]
[1770696490405,12.31576356,86.269,86.221,13.22297278]
[1770696490804,12.31318423,86.293,86.241,13.22297278]
[1770696491098,8.39903866,86.292,86.241,13.22297278]
[1770696491303,8.39903866,86.291,86.241,13.22297278]
[1770696491504,8.39903866,86.29,86.241,13.22297278]
[1770696491704,12.31318423,86.293,86.251,13.22297278]
[1770696491902,12.31318423,86.293,86.25,3.97055926]
[1770696491903,12.53739693,86.305,86.261,13.22297278]
[1770696492200,12.53739693,86.318,86.271,13.22297278]
[1770696493306,14.35610123,86.31,86.271,13.22297278]
[1770696493502,11.90220221,86.309,86.271,13.22297278]
[1770696495513,11.90220221,86.309,86.256,13.22297278]
[1770696495702,11.90220221,86.309,86.258,10.4412]
[1770696495909,11.90220221,86.309,86.259,13.22297278]
[1770696496318,11.90220221,86.309,86.261,13.22297278]
[1770696497806,11.90220221,86.309,86.266,13.22297278]
[1770696502022,1.9170727,86.31,86.271,11.3306198]
[1770696503014,13.27439707,86.31,86.271,11.3306198]
[1770696504524,1.9170727,86.31,86.271,11.3306198]
[1770696506313,11.33596693,86.309,86.264,10.4405]
[1770696506515,11.33596693,86.309,86.26,11.3306198]
[1770696506516,3.96855387,86.3,86.26,11.3306198]
[1770696506718,11.29432006,86.299,86.26,11.3306198]
[1770696506920,17.17994663,86.31,86.26,11.3306198]
[1770696507313,13.21139276,86.31,86.262,10.4407]
[1770696507518,13.21139276,86.31,86.263,11.3306198]
[1770696508224,1.9170727,86.31,86.263,11.3306198]
[1770696508721,1.9170727,86.31,86.265,10.4403]
[1770696508925,1.9170727,86.31,86.266,11.3306198]
[1770696509726,1.9170727,86.31,86.268,10.44]
[1770696509920,1.9170727,86.31,86.269,11.3306198]
[1770696510123,5.88562657,86.31,86.269,11.3306198]
[1770696510424,1.9170727,86.31,86.269,11.3306198]
[1770696510820,1.9170727,86.31,86.275,11.3306198]
[1770696511428,1.9170727,86.31,86.279,10.4387]
[1770696512418,10.91151919,86.309,86.275,11.3306198]
[1770696513024,10.91151919,86.309,86.268,10.44]
[1770696516425,10.91151919,86.309,86.269,11.3306198]
[1770696516934,1.9170727,86.31,86.271,11.3306198]
[1770696520737,10.48608031,86.309,86.271,11.3306198]
[1770696520928,3.96855387,86.28,86.221,11.3306198]
[1770696521228,14.45463418,86.29,86.231,11.3306198]
[1770696521630,1.9170727,86.31,86.231,11.3306198]
[1770696521631,3.96855387,86.28,86.231,11.3306198]
[1770696522231,3.96855387,86.28,86.232,10.4444]
[1770696522440,3.96855387,86.29,86.231,11.3306198]
[1770696523539,10.16338727,86.289,86.231,11.3306198]
[1770696523740,10.16338727,86.289,86.232,11.3306198]
[1770696525537,3.96855387,86.28,86.232,11.3306198]
[1770696525740,3.96855387,86.28,86.236,11.3306198]
[1770696526242,10.16338727,86.289,86.236,11.3306198]
[1770696527446,3.96855387,86.27,86.236,11.3306198]
[1770696529139,9.75570206,86.269,86.213,11.3306198]
[1770696529441,1.9170727,86.31,86.213,11.3306198]
[1770696529442,3.96855387,86.28,86.213,11.3306198]
[1770696529644,3.96855387,86.28,86.225,11.14063259]
[1770696530937,3.96855387,86.27,86.225,11.14063259]
[1770696531437,14.06813962,86.28,86.225,11.14063259]
[1770696532235,10.12373849,86.279,86.225,11.14063259]
[1770696532541,3.96855387,86.27,86.225,11.14063259]
[1770696533439,14.02654098,86.27,86.225,11.14063259]
[1770696535339,10.00033634,86.299,86.241,11.14063259]
[1770696535840,3.96855387,86.29,86.241,11.14063259]
[1770696537042,13.9279029,86.29,86.241,11.14063259]
[1770696537244,9.95934903,86.289,86.241,11.14063259]
[1770696541747,3.96855387,86.28,86.241,11.14063259]
[1770696543259,3.96855387,86.28,86.229,11.14063259]
[1770696543260,10.17987291,86.279,86.229,11.14063259]
[1770696543754,10.17987291,86.279,86.218,10.4461]
[1770696543755,3.96855387,86.26,86.219,11.14063259]
[1770696544848,9.9612572,86.259,86.219,11.14063259]
[1770696545055,9.9612572,86.229,86.171,11.14063259]
[1770696545360,9.93617409,86.259,86.2,3.96855387]
[1770696545653,9.8645979,86.274,86.211,11.14063259]
[1770696546055,13.83315177,86.27,86.211,11.14063259]
[1770696547152,9.8645979,86.27,86.211,11.14063259]
[1770696548152,10.4387,86.28,86.221,11.14063259]
[1770696549851,9.14005477,86.285,86.221,11.14063259]
[1770696550655,9.14005477,86.285,86.231,11.14063259]
[1770696550855,8.82240752,86.279,86.231,11.14063259]
[1770696551953,8.7988435,86.259,86.212,11.14063259]
[1770696553662,3.96855387,86.25,86.212,11.14063259]
[1770696554161,3.96855387,86.25,86.191,10.4493]
[1770696554162,9.40395575,86.249,86.197,11.14063259]
[1770696557164,9.31622223,86.264,86.199,11.14063259]
[1770696557461,9.31622223,86.264,86.149,162.6249]
[1770696557462,9.31622223,86.264,86.201,11.14063259]
[1770696558159,9.31622223,86.264,86.202,11.14063259]
[1770696558160,3.96855387,86.26,86.202,11.14063259]
[1770696559267,3.96855387,86.26,86.205,11.14063259]
[1770696560365,9.31622223,86.264,86.211,11.1031297]
[1770696560366,10.4407,86.263,86.211,11.1031297]
[1770696560668,9.37665443,86.259,86.211,11.1031297]
[1770696560867,3.97414113,86.25,86.211,11.1031297]
[1770696562171,9.37665443,86.259,86.211,11.1031297]
[1770696563169,3.97414113,86.26,86.211,11.1031297]
[1770696563170,3.97414113,86.25,86.211,11.1031297]
[1770696564168,19.57221479,86.252,86.211,11.1031297]
[1770696564770,9.24313314,86.249,86.194,11.30754938]
[1770696564966,9.24313314,86.239,86.194,11.30754938]
[1770696575378,9.08969856,86.265,86.194,11.30754938]
[1770696575579,9.08969856,86.265,86.15,34.88]
[1770696575580,3.97414113,86.26,86.201,11.30754938]
[1770696575881,9.08969856,86.265,86.21,3.97414113]
[1770696576188,9.08969856,86.265,86.211,11.30754938]
[1770696576376,9.07255134,86.259,86.211,11.30754938]
[1770696576776,3.97414113,86.25,86.211,11.30754938]
[1770696576978,9.07191493,86.249,86.211,11.30754938]
[1770696577179,9.07191493,86.249,86.202,10.4479]
[1770696577378,9.07191493,86.249,86.203,11.30754938]
[1770696578880,10.4426,86.248,86.203,11.30754938]
[1770696580484,8.89549368,86.247,86.203,11.30754938]
[1770696581289,8.89549368,86.259,86.203,11.30754938]
[1770696581888,8.88159126,86.279,86.217,11.30754938]
[1770696582078,8.88159126,86.269,86.217,11.30754938]
[1770696582688,3.97414113,86.28,86.217,11.30754938]
[1770696582884,8.86507228,86.279,86.217,11.30754938]
[1770696583792,8.82701712,86.269,86.219,21.75344938]
[1770696583989,8.82701712,86.269,86.22,11.30754938]
[1770696586489,8.82701712,86.269,86.225,11.30754938]
[1770696586994,8.82701712,86.269,86.162,197.4799]
[1770696586995,8.77018215,86.301,86.249,11.30754938]
[1770696587294,14.39846112,86.314,86.249,11.30754938]
[1770696587295,8.77018215,86.296,86.249,11.30754938]
[1770696587495,8.45760996,86.295,86.249,11.30754938]
[1770696587689,8.45760996,86.294,86.249,11.30754938]
[1770696587898,8.45760996,86.293,86.251,10.4421]
[1770696588196,10.435,86.311,86.251,10.4421]
[1770696588197,8.78241667,86.309,86.252,11.30754938]
[1770696588389,8.76748914,86.307,86.252,11.30754938]
[1770696588587,17.22016529,86.306,86.252,11.30754938]
[1770696588790,8.45315948,86.305,86.252,11.30754938]
[1770696588991,8.45315948,86.304,86.252,11.30754938]
[1770696589193,8.45315948,86.303,86.252,11.30754938]
[1770696589490,8.45315948,86.302,86.252,11.30754938]
[1770696589690,8.45315948,86.301,86.252,11.30754938]
[1770696589892,8.45315948,86.3,86.252,11.30754938]
[1770696590092,8.45315948,86.299,86.252,11.30754938]
[1770696590292,3.97414113,86.3,86.252,11.30754938]
[1770696590594,8.74003793,86.299,86.252,11.30754938]
[1770696592789,3.97414113,86.28,86.232,10.26836528]
[1770696592987,8.67956001,86.279,86.232,10.26836528]
[1770696593896,8.67956001,86.279,86.235,10.26836528]
[1770696594789,8.67956001,86.279,86.22,3.97202946]
[1770696594790,8.67956001,86.279,86.237,10.26836528]
[1770696597201,8.67956001,86.279,86.175,34.88]
[1770696597202,3.97202946,86.27,86.225,10.26836528]
[1770696597394,12.62797964,86.27,86.225,10.26836528]
[1770696598600,8.69642049,86.269,86.225,10.26836528]
[1770696600004,8.66733935,86.259,86.211,10.26836528]
[1770696600398,12.62652183,86.27,86.211,10.26836528]
[1770696601194,3.97202946,86.26,86.211,10.26836528]
[1770696601400,3.97202946,86.26,86.212,10.4468]
[1770696601703,3.97202946,86.26,86.213,10.26836528]
[1770696602403,12.61398369,86.26,86.213,10.26836528]
[1770696603305,12.61398369,86.26,86.215,10.26836528]
[1770696604106,8.45502845,86.273,86.215,10.26836528]
[1770696604409,8.45502845,86.269,86.215,10.26836528]